[Event "*** Titled Tuesday Blitz"]
[Site "Chess.com"]
[Date "2020.12.29"]
[Round "1"]
[White "carloseduar100"]
[Black "rubhani"]
[Result "1-0"]
[WhiteElo "2089"]
[BlackElo "2482"]
[TimeControl "180+1"]
[EndTime "10:05:20 PST"]
[Termination "carloseduar100 won by resignation"]

1. d4 {[%clk 0:02:59.6]} 1... b6 {[%clk 0:02:58.6]} 2. Nf3 {[%clk 0:02:58]} 2...
Bb7 {[%clk 0:02:59.5]} 3. g3 {[%clk 0:02:58.2]} 3... g6 {[%clk 0:02:58.7]} 4.
Bg2 {[%clk 0:02:58.3]} 4... Bg7 {[%clk 0:02:59.6]} 5. O-O {[%clk 0:02:58.7]}
5... Nf6 {[%clk 0:03:00.3]} 6. c4 {[%clk 0:02:58.5]} 6... O-O {[%clk 0:03:00.9]}
7. d5 {[%clk 0:02:58.4]} 7... e6 {[%clk 0:02:56.9]} 8. Nc3 {[%clk 0:02:54.7]}
8... exd5 {[%clk 0:02:55.3]} 9. cxd5 {[%clk 0:02:55.6]} 9... Re8 {[%clk
0:02:55.8]} 10. Bg5 {[%clk 0:02:54.7]} 10... h6 {[%clk 0:02:54.5]} 11. Bf4
{[%clk 0:02:31.7]} 11... d6 {[%clk 0:02:54.3]} 12. Rc1 {[%clk 0:02:27.8]} 12...
Nbd7 {[%clk 0:02:50.8]} 13. b4 {[%clk 0:02:23]} 13... a6 {[%clk 0:02:18.8]} 14.
a4 {[%clk 0:02:22.7]} 14... Ne4 {[%clk 0:02:17.9]} 15. Nxe4 {[%clk 0:02:22.3]}
15... Rxe4 {[%clk 0:02:17.5]} 16. Qd2 {[%clk 0:02:04.6]} 16... a5 {[%clk
0:02:12.3]} 17. bxa5 {[%clk 0:02:03.8]} 17... Rxa5 {[%clk 0:02:11.3]} 18. Bxh6
{[%clk 0:02:03.8]} 18... Rxd5 {[%clk 0:02:05.2]} 19. Qg5 {[%clk 0:01:59.6]}
19... Rxg5 {[%clk 0:02:04.2]} 20. Bxg5 {[%clk 0:01:58.5]} 20... Bf6 {[%clk
0:01:55.3]} 21. Bxf6 {[%clk 0:01:51.7]} 21... Nxf6 {[%clk 0:01:56.2]} 22. Ng5
{[%clk 0:01:51.8]} 22... Re5 {[%clk 0:01:53]} 23. Nxf7 {[%clk 0:01:48.2]} 23...
Bxg2 {[%clk 0:01:49.7]} 24. Nxd8 {[%clk 0:01:46.9]} 24... Bxf1 {[%clk
0:01:47.6]} 25. Kxf1 {[%clk 0:01:47.8]} 25... Nd5 {[%clk 0:01:26]} 26. Nc6
{[%clk 0:01:44.6]} 26... Re4 {[%clk 0:01:24.4]} 27. a5 {[%clk 0:01:44.3]} 27...
bxa5 {[%clk 0:01:19.5]} 28. Nxa5 {[%clk 0:01:45.2]} 28... Kf7 {[%clk 0:01:20.1]}
29. Rc4 {[%clk 0:01:44.5]} 29... Re8 {[%clk 0:01:13.6]} 30. e4 {[%clk
0:01:42.9]} 30... Ra8 {[%clk 0:00:48.9]} 31. Nb3 {[%clk 0:01:42.7]} 31... Nf6
{[%clk 0:00:42.5]} 32. Rxc7+ {[%clk 0:01:42.4]} 32... Ke6 {[%clk 0:00:42.8]} 33.
f3 {[%clk 0:01:35.1]} 33... Ra3 {[%clk 0:00:42.3]} 34. Nd4+ {[%clk 0:01:33.6]}
34... Ke5 {[%clk 0:00:41.6]} 35. Nc6+ {[%clk 0:01:33.6]} 1-0

[Event "*** Titled Tuesday Blitz"]
[Site "Chess.com"]
[Date "2020.12.29"]
[Round "1"]
[White "Anna_ChessMate"]
[Black "Homino"]
[Result "0-1"]
[WhiteElo "2546"]
[BlackElo "2283"]
[TimeControl "180+1"]
[EndTime "10:05:23 PST"]
[Termination "Homino won by resignation"]

1. d4 {[%clk 0:02:59.4]} 1... Nf6 {[%clk 0:02:59.3]} 2. c4 {[%clk 0:02:59.1]}
2... c5 {[%clk 0:02:59.1]} 3. Nf3 {[%clk 0:02:55]} 3... g6 {[%clk 0:02:56.5]} 4.
g3 {[%clk 0:02:53.7]} 4... Bg7 {[%clk 0:02:53.4]} 5. Bg2 {[%clk 0:02:53.8]} 5...
O-O {[%clk 0:02:53.1]} 6. O-O {[%clk 0:02:53.7]} 6... cxd4 {[%clk 0:02:52.3]} 7.
Nxd4 {[%clk 0:02:54.6]} 7... Nc6 {[%clk 0:02:52.7]} 8. Nc3 {[%clk 0:02:52.8]}
8... Nxd4 {[%clk 0:02:49.8]} 9. Qxd4 {[%clk 0:02:53]} 9... d6 {[%clk 0:02:50.4]}
10. Qd3 {[%clk 0:02:42.7]} 10... Bf5 {[%clk 0:02:49.8]} 11. e4 {[%clk
0:02:41.4]} 11... Be6 {[%clk 0:02:50.2]} 12. b3 {[%clk 0:02:40.5]} 12... Qa5
{[%clk 0:02:36.4]} 13. Bb2 {[%clk 0:02:40.1]} 13... Rfc8 {[%clk 0:02:35.8]} 14.
Rad1 {[%clk 0:02:34.3]} 14... a6 {[%clk 0:02:35.3]} 15. h3 {[%clk 0:02:32.7]}
15... b5 {[%clk 0:02:27.2]} 16. cxb5 {[%clk 0:02:25.7]} 16... axb5 {[%clk
0:02:27.3]} 17. Rfe1 {[%clk 0:02:10]} 17... Nd7 {[%clk 0:02:11]} 18. Rc1 {[%clk
0:01:45.8]} 18... Nc5 {[%clk 0:01:52.8]} 19. Qe3 {[%clk 0:01:37.9]} 19... b4
{[%clk 0:01:48.1]} 20. Nd1 {[%clk 0:01:33.3]} 20... Bxb2 {[%clk 0:01:43.6]} 21.
Nxb2 {[%clk 0:01:33.7]} 21... Qxa2 {[%clk 0:01:42.5]} 22. Nd3 {[%clk 0:01:31.3]}
22... Nxd3 {[%clk 0:01:35]} 23. Qxd3 {[%clk 0:01:32.2]} 23... Qxb3 {[%clk
0:01:30.1]} 24. Qxb3 {[%clk 0:01:22.1]} 24... Bxb3 {[%clk 0:01:31]} 25. Rb1
{[%clk 0:01:23]} 25... Rc3 {[%clk 0:01:25.2]} 26. e5 {[%clk 0:01:22.3]} 26...
Rb8 {[%clk 0:01:12.5]} 27. exd6 {[%clk 0:01:18.2]} 27... exd6 {[%clk 0:01:13.4]}
28. Re7 {[%clk 0:01:18]} 28... Be6 {[%clk 0:01:09.1]} 29. g4 {[%clk 0:01:07.5]}
29... b3 {[%clk 0:01:06]} 30. f4 {[%clk 0:01:07.7]} 30... b2 {[%clk 0:01:03.8]}
31. Be4 {[%clk 0:01:07.4]} 31... d5 {[%clk 0:00:59.9]} 32. f5 {[%clk 0:01:05.9]}
0-1

[Event "*** Titled Tuesday Blitz"]
[Site "Chess.com"]
[Date "2020.12.29"]
[Round "1"]
[White "tigra"]
[Black "FrenchMonster2002"]
[Result "1-0"]
[WhiteElo "2818"]
[BlackElo "2423"]
[TimeControl "180+1"]
[EndTime "10:05:24 PST"]
[Termination "tigra won by resignation"]

1. e4 {[%clk 0:03:00.9]} 1... g6 {[%clk 0:02:57.7]} 2. d4 {[%clk 0:03:00.7]}
2... Bg7 {[%clk 0:02:58.5]} 3. Bg5 {[%clk 0:03:01.3]} 3... d6 {[%clk 0:02:57.9]}
4. Nc3 {[%clk 0:03:01]} 4... a6 {[%clk 0:02:58]} 5. f4 {[%clk 0:03:00.4]} 5...
b5 {[%clk 0:02:56.8]} 6. Bd3 {[%clk 0:03:00.5]} 6... Bb7 {[%clk 0:02:56.6]} 7.
Nf3 {[%clk 0:03:00.3]} 7... Nd7 {[%clk 0:02:56.2]} 8. Qe2 {[%clk 0:02:57.7]}
8... c5 {[%clk 0:02:53.7]} 9. e5 {[%clk 0:02:46.1]} 9... Bxf3 {[%clk 0:02:46.5]}
10. Qxf3 {[%clk 0:02:43.5]} 10... cxd4 {[%clk 0:02:47.1]} 11. Nd5 {[%clk
0:02:41.7]} 11... dxe5 {[%clk 0:02:31.3]} 12. Nc7+ {[%clk 0:02:41.1]} 12... Qxc7
{[%clk 0:02:31.9]} 13. Qxa8+ {[%clk 0:02:41]} 13... Qd8 {[%clk 0:02:32.4]} 14.
Qxa6 {[%clk 0:02:38.7]} 14... h6 {[%clk 0:02:09.7]} 15. Bh4 {[%clk 0:02:37.9]}
15... exf4 {[%clk 0:02:09.4]} 16. Bxb5 {[%clk 0:02:36.8]} 16... g5 {[%clk
0:02:09.3]} 17. Bf2 {[%clk 0:02:35.5]} 17... Nf6 {[%clk 0:02:05.1]} 18. Bxd4
{[%clk 0:02:34.2]} 18... O-O {[%clk 0:02:03.7]} 19. O-O-O {[%clk 0:02:33.9]}
19... Qc7 {[%clk 0:01:55.2]} 20. Bxd7 {[%clk 0:02:32.9]} 20... Nxd7 {[%clk
0:01:50.3]} 21. Qa7 {[%clk 0:02:31.9]} 21... Qxa7 {[%clk 0:01:44.2]} 22. Bxa7
{[%clk 0:02:31.5]} 22... Ne5 {[%clk 0:01:39.5]} 23. Bc5 {[%clk 0:02:30.2]} 23...
Rc8 {[%clk 0:01:15.8]} 24. Bxe7 {[%clk 0:02:28.3]} 24... Nc4 {[%clk 0:01:15.9]}
25. b3 {[%clk 0:02:26]} 25... Ne3 {[%clk 0:01:15.8]} 26. Rd8+ {[%clk 0:02:25.4]}
26... Rxd8 {[%clk 0:01:14.7]} 27. Bxd8 {[%clk 0:02:26.3]} 27... Nxg2 {[%clk
0:01:14.9]} 28. a4 {[%clk 0:02:21.4]} 28... Bd4 {[%clk 0:01:10.5]} 29. a5 {[%clk
0:02:20.3]} 29... f3 {[%clk 0:00:28]} 30. Bb6 {[%clk 0:02:19]} 30... Be5 {[%clk
0:00:19.3]} 31. a6 {[%clk 0:02:18.2]} 31... Bb8 {[%clk 0:00:19.9]} 32. a7 {[%clk
0:02:13.8]} 32... Bxa7 {[%clk 0:00:20.4]} 33. Bxa7 {[%clk 0:02:14.7]} 33... g4
{[%clk 0:00:18.7]} 34. b4 {[%clk 0:02:14.7]} 34... Nf4 {[%clk 0:00:10]} 35. b5
{[%clk 0:02:14.7]} 35... Nd5 {[%clk 0:00:04.8]} 36. b6 {[%clk 0:02:14]} 36...
Nxb6 {[%clk 0:00:02.5]} 37. Bxb6 {[%clk 0:02:13.9]} 37... f5 {[%clk 0:00:03.2]}
38. Kd2 {[%clk 0:02:12.4]} 38... Kf7 {[%clk 0:00:03.4]} 39. Ke3 {[%clk
0:02:12.7]} 1-0

[Event "*** Titled Tuesday Blitz"]
[Site "Chess.com"]
[Date "2020.12.29"]
[Round "1"]
[White "rynos0411"]
[Black "1g41-0"]
[Result "0-1"]
[WhiteElo "2318"]
[BlackElo "2618"]
[TimeControl "180+1"]
[EndTime "10:05:27 PST"]
[Termination "1g41-0 won by resignation"]

1. e4 {[%clk 0:02:56.8]} 1... e5 {[%clk 0:02:52.8]} 2. Nf3 {[%clk 0:02:56]} 2...
Nc6 {[%clk 0:02:51.6]} 3. Bb5 {[%clk 0:02:56.5]} 3... a6 {[%clk 0:02:48.3]} 4.
Ba4 {[%clk 0:02:56.9]} 4... Nf6 {[%clk 0:02:45.3]} 5. O-O {[%clk 0:02:55.4]}
5... Be7 {[%clk 0:02:44.6]} 6. Re1 {[%clk 0:02:55.2]} 6... b5 {[%clk 0:02:44.7]}
7. Bb3 {[%clk 0:02:55.1]} 7... O-O {[%clk 0:02:45.3]} 8. c3 {[%clk 0:02:51.2]}
8... d6 {[%clk 0:02:43.5]} 9. h3 {[%clk 0:02:49.9]} 9... Bb7 {[%clk 0:02:38.6]}
10. d4 {[%clk 0:02:49.5]} 10... exd4 {[%clk 0:02:30.3]} 11. cxd4 {[%clk
0:02:47.9]} 11... Nd7 {[%clk 0:02:29.6]} 12. Nc3 {[%clk 0:02:44.7]} 12... Bf6
{[%clk 0:02:25.9]} 13. Be3 {[%clk 0:02:42.4]} 13... Re8 {[%clk 0:02:25.2]} 14.
Rc1 {[%clk 0:02:32.5]} 14... Na5 {[%clk 0:02:23.2]} 15. Bc2 {[%clk 0:02:32.3]}
15... Nc4 {[%clk 0:02:23.8]} 16. b3 {[%clk 0:02:20]} 16... Nxe3 {[%clk
0:02:20.3]} 17. Rxe3 {[%clk 0:02:20.1]} 17... Nb6 {[%clk 0:02:14.5]} 18. Qd3
{[%clk 0:02:08]} 18... g6 {[%clk 0:02:12]} 19. Rce1 {[%clk 0:01:58.6]} 19... c5
{[%clk 0:02:03.6]} 20. Ne2 {[%clk 0:01:26.7]} 20... c4 {[%clk 0:01:59.5]} 21.
Qd2 {[%clk 0:01:23.8]} 21... Rc8 {[%clk 0:01:52.8]} 22. Ng3 {[%clk 0:01:19.1]}
22... Bg7 {[%clk 0:01:48.6]} 23. h4 {[%clk 0:01:10.5]} 23... Bh6 {[%clk
0:01:48]} 24. Ng5 {[%clk 0:01:03.4]} 24... f6 {[%clk 0:01:43.6]} 25. f4 {[%clk
0:00:57.3]} 25... fxg5 {[%clk 0:01:42]} 26. hxg5 {[%clk 0:00:58.2]} 26... Bxg5
{[%clk 0:01:42.5]} 27. fxg5 {[%clk 0:00:53.9]} 27... Qxg5 {[%clk 0:01:43.4]} 28.
e5 {[%clk 0:00:39.1]} 28... dxe5 {[%clk 0:01:43.1]} 29. dxe5 {[%clk 0:00:31.7]}
29... Rcd8 {[%clk 0:01:43.2]} 30. Qe2 {[%clk 0:00:27.8]} 30... Nd5 {[%clk
0:01:42.5]} 31. Rf3 {[%clk 0:00:22]} 31... Nf4 {[%clk 0:01:41.1]} 32. Qe3 {[%clk
0:00:19.9]} 32... Bxf3 {[%clk 0:01:36.8]} 33. Qxf3 {[%clk 0:00:20.8]} 33... Rd2
{[%clk 0:01:35.2]} 0-1

[Event "*** Titled Tuesday Blitz"]
[Site "Chess.com"]
[Date "2020.12.29"]
[Round "1"]
[White "ambaixador"]
[Black "K_A_S_T_O_R"]
[Result "0-1"]
[WhiteElo "2435"]
[BlackElo "2833"]
[TimeControl "180+1"]
[EndTime "10:05:32 PST"]
[Termination "K_A_S_T_O_R won by resignation"]

1. e4 {[%clk 0:03:00.4]} 1... c5 {[%clk 0:02:58.8]} 2. Nf3 {[%clk 0:02:59.5]}
2... d6 {[%clk 0:02:53.9]} 3. d4 {[%clk 0:02:58.7]} 3... cxd4 {[%clk 0:02:53.4]}
4. Nxd4 {[%clk 0:02:59.6]} 4... Nf6 {[%clk 0:02:52.8]} 5. Nc3 {[%clk 0:02:59]}
5... a6 {[%clk 0:02:52]} 6. Bg5 {[%clk 0:02:47.5]} 6... e6 {[%clk 0:02:51.6]} 7.
f4 {[%clk 0:02:46.5]} 7... Nbd7 {[%clk 0:02:50.8]} 8. Qf3 {[%clk 0:02:33]} 8...
Qc7 {[%clk 0:02:50.6]} 9. O-O-O {[%clk 0:02:31.7]} 9... b5 {[%clk 0:02:50.3]}
10. Bd3 {[%clk 0:01:59.4]} 10... Bb7 {[%clk 0:02:49]} 11. Rhe1 {[%clk
0:01:56.7]} 11... Qb6 {[%clk 0:02:48.9]} 12. Nb3 {[%clk 0:01:41.1]} 12... Rc8
{[%clk 0:02:45.8]} 13. Kb1 {[%clk 0:01:40.4]} 13... Rxc3 {[%clk 0:02:44.2]} 14.
bxc3 {[%clk 0:01:39.8]} 14... Qc7 {[%clk 0:02:44.1]} 15. g4 {[%clk 0:01:31.7]}
15... Be7 {[%clk 0:02:41.3]} 16. Bxf6 {[%clk 0:00:47.1]} 16... Bxf6 {[%clk
0:02:40.4]} 17. g5 {[%clk 0:00:47.1]} 17... Bxc3 {[%clk 0:02:38.8]} 18. f5
{[%clk 0:00:43.9]} 18... Ne5 {[%clk 0:02:28]} 19. Qe2 {[%clk 0:00:40.1]} 19...
Bxe1 {[%clk 0:02:15.6]} 20. Rxe1 {[%clk 0:00:41]} 20... Qe7 {[%clk 0:02:05.7]}
21. Rg1 {[%clk 0:00:31.3]} 21... exf5 {[%clk 0:01:54.6]} 22. exf5 {[%clk
0:00:30.4]} 22... Nf3 {[%clk 0:01:54.3]} 23. Qxe7+ {[%clk 0:00:22.4]} 23... Kxe7
{[%clk 0:01:53.8]} 24. Rg3 {[%clk 0:00:23.3]} 24... f6 {[%clk 0:01:50.1]} 25.
gxf6+ {[%clk 0:00:18.8]} 25... Kxf6 {[%clk 0:01:49.4]} 26. h3 {[%clk 0:00:17.8]}
26... Re8 {[%clk 0:01:45.8]} 27. Kb2 {[%clk 0:00:17.8]} 27... Ne5 {[%clk
0:01:43.2]} 28. Nd4 {[%clk 0:00:16.4]} 28... Bc8 {[%clk 0:01:42]} 29. Re3 {[%clk
0:00:11.3]} 29... Nc4+ {[%clk 0:01:40.4]} 0-1

[Event "*** Titled Tuesday Blitz"]
[Site "Chess.com"]
[Date "2020.12.29"]
[Round "1"]
[White "maciek_92"]
[Black "zmeeed67"]
[Result "1-0"]
[WhiteElo "2768"]
[BlackElo "2407"]
[TimeControl "180+1"]
[EndTime "10:05:32 PST"]
[Termination "maciek_92 won on time"]

1. e4 {[%clk 0:03:00.5]} 1... Nc6 {[%clk 0:02:58.7]} 2. Nc3 {[%clk 0:02:57.4]}
2... Nf6 {[%clk 0:02:56]} 3. f4 {[%clk 0:02:50.4]} 3... d6 {[%clk 0:02:55.4]} 4.
Nf3 {[%clk 0:02:50.3]} 4... e5 {[%clk 0:02:54.7]} 5. Bc4 {[%clk 0:02:50.1]} 5...
exf4 {[%clk 0:02:43.9]} 6. d4 {[%clk 0:02:49.5]} 6... Nh5 {[%clk 0:02:43.5]} 7.
O-O {[%clk 0:02:48.2]} 7... Be7 {[%clk 0:02:42.9]} 8. d5 {[%clk 0:02:42.1]} 8...
Nb8 {[%clk 0:02:10.5]} 9. Nd4 {[%clk 0:02:41.9]} 9... g6 {[%clk 0:02:05.9]} 10.
Be2 {[%clk 0:02:41.5]} 10... Nf6 {[%clk 0:01:46.1]} 11. Bxf4 {[%clk 0:02:41]}
11... Nbd7 {[%clk 0:01:42.9]} 12. Qd2 {[%clk 0:02:32.4]} 12... h5 {[%clk
0:01:38]} 13. h3 {[%clk 0:02:27.8]} 13... a6 {[%clk 0:01:36.5]} 14. a4 {[%clk
0:02:26.7]} 14... O-O {[%clk 0:01:15]} 15. Rf2 {[%clk 0:02:22.1]} 15... Nc5
{[%clk 0:00:37.9]} 16. Bd3 {[%clk 0:02:11.9]} 16... Nxd3 {[%clk 0:00:35.3]} 17.
cxd3 {[%clk 0:02:12.8]} 17... Nh7 {[%clk 0:00:19.2]} 18. Raf1 {[%clk 0:02:04.4]}
18... Bg5 {[%clk 0:00:18.7]} 19. Nf3 {[%clk 0:01:56.5]} 19... Bxf4 {[%clk
0:00:16.7]} 20. Qxf4 {[%clk 0:01:57.4]} 20... Qf6 {[%clk 0:00:15.8]} 21. Qe3
{[%clk 0:01:49.6]} 21... Qg7 {[%clk 0:00:14.5]} 22. d4 {[%clk 0:01:49.7]} 22...
Bd7 {[%clk 0:00:14.7]} 23. e5 {[%clk 0:01:44.2]} 23... Rae8 {[%clk 0:00:13]} 24.
Ne4 {[%clk 0:01:41.6]} 24... Bxa4 {[%clk 0:00:10.8]} 25. Nfg5 {[%clk 0:01:36.6]}
1-0

[Event "*** Titled Tuesday Blitz"]
[Site "Chess.com"]
[Date "2020.12.29"]
[Round "1"]
[White "googlegoom"]
[Black "gatocorbis"]
[Result "1-0"]
[WhiteElo "2486"]
[BlackElo "2048"]
[TimeControl "180+1"]
[EndTime "10:05:37 PST"]
[Termination "googlegoom won by resignation"]

1. Nf3 {[%clk 0:03:00.9]} 1... Nf6 {[%clk 0:02:57.2]} 2. b3 {[%clk 0:03:01]}
2... g6 {[%clk 0:02:56]} 3. Bb2 {[%clk 0:03:01.2]} 3... Bg7 {[%clk 0:02:56.1]}
4. e3 {[%clk 0:03:01.8]} 4... O-O {[%clk 0:02:55.6]} 5. Be2 {[%clk 0:03:02.1]}
5... d5 {[%clk 0:02:55.5]} 6. d4 {[%clk 0:03:02.7]} 6... Ne4 {[%clk 0:02:51.9]}
7. O-O {[%clk 0:03:03.6]} 7... c5 {[%clk 0:02:50.7]} 8. Nbd2 {[%clk 0:03:03.3]}
8... Nc6 {[%clk 0:02:48.1]} 9. c3 {[%clk 0:03:03.8]} 9... Bg4 {[%clk 0:02:38.3]}
10. h3 {[%clk 0:03:01]} 10... Nxd2 {[%clk 0:02:33.2]} 11. Qxd2 {[%clk
0:02:59.7]} 11... Bxf3 {[%clk 0:02:26.3]} 12. Bxf3 {[%clk 0:03:00.6]} 12... cxd4
{[%clk 0:02:26]} 13. cxd4 {[%clk 0:03:01.3]} 13... e6 {[%clk 0:02:24.8]} 14.
Rfc1 {[%clk 0:03:01.7]} 14... Qd7 {[%clk 0:02:22.4]} 15. b4 {[%clk 0:02:57]}
15... a6 {[%clk 0:02:19.2]} 16. Be2 {[%clk 0:02:56.7]} 16... Rfc8 {[%clk
0:02:18]} 17. a4 {[%clk 0:02:55.2]} 17... Bf8 {[%clk 0:02:13.9]} 18. b5 {[%clk
0:02:52]} 18... axb5 {[%clk 0:02:12.4]} 19. Bxb5 {[%clk 0:02:51.8]} 19... Qd6
{[%clk 0:02:03.2]} 20. Ba3 {[%clk 0:02:45.1]} 20... Qd8 {[%clk 0:02:00]} 21.
Bxf8 {[%clk 0:02:41.7]} 21... Qxf8 {[%clk 0:01:57.4]} 22. Bxc6 {[%clk
0:02:39.2]} 22... Rxc6 {[%clk 0:01:54.6]} 23. Rxc6 {[%clk 0:02:38.5]} 23... bxc6
{[%clk 0:01:52.4]} 24. a5 {[%clk 0:02:39.4]} 24... c5 {[%clk 0:01:51.1]} 25.
dxc5 {[%clk 0:02:34.9]} 25... Qxc5 {[%clk 0:01:49.2]} 26. a6 {[%clk 0:02:35.2]}
26... Qb6 {[%clk 0:01:46.1]} 27. Qa2 {[%clk 0:02:29.1]} 27... Kf8 {[%clk
0:01:41.6]} 28. Qa3+ {[%clk 0:02:27.4]} 28... Ke8 {[%clk 0:01:39.8]} 29. h4
{[%clk 0:02:27.7]} 29... h5 {[%clk 0:01:37.7]} 30. g3 {[%clk 0:02:27.5]} 30...
Kd7 {[%clk 0:01:36]} 31. a7 {[%clk 0:02:25.1]} 31... Kc7 {[%clk 0:01:18.2]} 32.
Qe7+ {[%clk 0:02:22.3]} 32... Kc6 {[%clk 0:01:16]} 33. Qxf7 {[%clk 0:02:22.4]}
33... Kc5 {[%clk 0:01:13.7]} 34. Qxg6 {[%clk 0:02:12.1]} 34... Rxa7 {[%clk
0:01:10.9]} 35. Rxa7 {[%clk 0:02:09.5]} 35... Qxa7 {[%clk 0:01:07.7]} 36. Qxh5
{[%clk 0:02:07.9]} 36... Qa1+ {[%clk 0:01:05.6]} 37. Kg2 {[%clk 0:02:08.1]}
37... Qf6 {[%clk 0:01:03.7]} 38. Qf3 {[%clk 0:02:07.6]} 38... Qg6 {[%clk
0:00:56.8]} 39. h5 {[%clk 0:02:05.7]} 39... Qg5 {[%clk 0:00:54.4]} 40. g4 {[%clk
0:02:01.3]} 40... e5 {[%clk 0:00:53.5]} 41. Qf5 {[%clk 0:02:01]} 41... Qh4
{[%clk 0:00:49.9]} 42. Qg6 {[%clk 0:01:58.3]} 42... e4 {[%clk 0:00:47.3]} 43. h6
{[%clk 0:01:57.5]} 43... Qd8 {[%clk 0:00:36.5]} 44. Qg7 {[%clk 0:01:51]} 1-0

[Event "*** Titled Tuesday Blitz"]
[Site "Chess.com"]
[Date "2020.12.29"]
[Round "1"]
[White "nitpicker"]
[Black "vlad_Sid"]
[Result "0-1"]
[WhiteElo "2244"]
[BlackElo "2553"]
[TimeControl "180+1"]
[EndTime "10:05:41 PST"]
[Termination "vlad_Sid won by resignation"]

1. d4 {[%clk 0:03:00.1]} 1... Nf6 {[%clk 0:03:00]} 2. c4 {[%clk 0:02:58.9]} 2...
c5 {[%clk 0:02:59.2]} 3. d5 {[%clk 0:02:57.9]} 3... b5 {[%clk 0:02:59.2]} 4.
cxb5 {[%clk 0:02:58.1]} 4... a6 {[%clk 0:02:59.3]} 5. bxa6 {[%clk 0:02:58.4]}
5... g6 {[%clk 0:02:59.8]} 6. Nc3 {[%clk 0:02:58.5]} 6... Bg7 {[%clk 0:03:00.3]}
7. e4 {[%clk 0:02:58.1]} 7... O-O {[%clk 0:03:00.8]} 8. Nf3 {[%clk 0:02:58.1]}
8... Qa5 {[%clk 0:03:01]} 9. Bd2 {[%clk 0:02:56.8]} 9... Bxa6 {[%clk 0:03:00.7]}
10. Be2 {[%clk 0:02:55.6]} 10... Bxe2 {[%clk 0:03:00.6]} 11. Qxe2 {[%clk
0:02:55.1]} 11... Qa6 {[%clk 0:03:01.5]} 12. Qxa6 {[%clk 0:02:47.4]} 12... Nxa6
{[%clk 0:03:02.4]} 13. O-O {[%clk 0:02:38.9]} 13... e6 {[%clk 0:03:01.5]} 14.
dxe6 {[%clk 0:02:35.9]} 14... fxe6 {[%clk 0:03:02.4]} 15. h3 {[%clk 0:02:29.9]}
15... d5 {[%clk 0:03:01.4]} 16. e5 {[%clk 0:02:16.1]} 16... Nd7 {[%clk 0:02:59]}
17. Rfe1 {[%clk 0:02:16.1]} 17... Nb4 {[%clk 0:02:57.7]} 18. Re2 {[%clk
0:02:10.1]} 18... Nd3 {[%clk 0:02:50.4]} 19. Nb5 {[%clk 0:01:52.6]} 19... N3xe5
{[%clk 0:02:44.5]} 20. Ng5 {[%clk 0:01:42.3]} 20... Nc4 {[%clk 0:02:35.1]} 21.
Nxe6 {[%clk 0:01:41.2]} 21... Bxb2 {[%clk 0:01:29]} 22. Rb1 {[%clk 0:01:39.9]}
22... Rf7 {[%clk 0:00:58.7]} 23. Nbc7 {[%clk 0:01:39.1]} 23... Rxa2 {[%clk
0:00:57.3]} 24. Nxd5 {[%clk 0:01:39.3]} 24... Nde5 {[%clk 0:00:52.2]} 25. Bc3
{[%clk 0:01:38.7]} 25... Rb7 {[%clk 0:00:34]} 26. Bxe5 {[%clk 0:01:15]} 26...
Bxe5 {[%clk 0:00:28.9]} 27. Rxb7 {[%clk 0:01:03.3]} 27... Ra1+ {[%clk
0:00:24.9]} 0-1

[Event "*** Titled Tuesday Blitz"]
[Site "Chess.com"]
[Date "2020.12.29"]
[Round "1"]
[White "pedromartinez91"]
[Black "Parhamov"]
[Result "1-0"]
[WhiteElo "2486"]
[BlackElo "2938"]
[TimeControl "180+1"]
[EndTime "10:05:42 PST"]
[Termination "pedromartinez91 won by resignation"]

1. e4 {[%clk 0:03:00.9]} 1... c5 {[%clk 0:02:59.4]} 2. Nf3 {[%clk 0:03:01.1]}
2... d6 {[%clk 0:02:59.2]} 3. d4 {[%clk 0:02:55.2]} 3... cxd4 {[%clk 0:02:58.5]}
4. Nxd4 {[%clk 0:02:56.1]} 4... Nf6 {[%clk 0:02:57.7]} 5. Nc3 {[%clk 0:02:56.2]}
5... Nc6 {[%clk 0:02:56.9]} 6. Bg5 {[%clk 0:02:55.8]} 6... e6 {[%clk 0:02:55]}
7. Qd2 {[%clk 0:02:54.2]} 7... a6 {[%clk 0:02:53.7]} 8. O-O-O {[%clk 0:02:51.4]}
8... Bd7 {[%clk 0:02:53.5]} 9. f4 {[%clk 0:02:43.2]} 9... Be7 {[%clk 0:02:47.7]}
10. Nf3 {[%clk 0:02:38]} 10... b5 {[%clk 0:02:46.4]} 11. Bd3 {[%clk 0:02:35.1]}
11... Rc8 {[%clk 0:02:40]} 12. Kb1 {[%clk 0:02:34.8]} 12... h6 {[%clk
0:02:38.4]} 13. Bh4 {[%clk 0:02:31.3]} 13... O-O {[%clk 0:02:29.5]} 14. g4
{[%clk 0:02:26.6]} 14... b4 {[%clk 0:02:24.4]} 15. Ne2 {[%clk 0:02:25.9]} 15...
d5 {[%clk 0:02:24.4]} 16. Bxf6 {[%clk 0:02:20.3]} 16... Bxf6 {[%clk 0:02:24.3]}
17. e5 {[%clk 0:02:20.4]} 17... Be7 {[%clk 0:02:24]} 18. g5 {[%clk 0:02:13.8]}
18... h5 {[%clk 0:02:20.5]} 19. g6 {[%clk 0:02:03.7]} 19... fxg6 {[%clk
0:02:05.3]} 20. Rhg1 {[%clk 0:01:56.8]} 20... Be8 {[%clk 0:02:00.1]} 21. Bxg6
{[%clk 0:01:50.8]} 21... Na5 {[%clk 0:01:59.5]} 22. Ned4 {[%clk 0:01:42.6]}
22... Nc4 {[%clk 0:01:58.9]} 23. Qg2 {[%clk 0:01:34.6]} 23... Bxg6 {[%clk
0:01:29.6]} 24. Qxg6 {[%clk 0:01:35.5]} 24... Rf7 {[%clk 0:01:30]} 25. f5 {[%clk
0:01:27.6]} 25... Na3+ {[%clk 0:00:29.1]} 26. bxa3 {[%clk 0:01:25.7]} 26... bxa3
{[%clk 0:00:28.8]} 27. fxe6 {[%clk 0:01:22.8]} 27... Qb6+ {[%clk 0:00:22.6]} 28.
Nb3 {[%clk 0:01:20.5]} 1-0